bitfinex/quotes_SOLUSD_20250129
["timestamp","ask_amount","ask_price","bid_price","bid_amount"]
[1738177315536,23.776884,229.5,229.41,32.53591553]
[1738177315841,32.53591553,229.47,229.38,0.063]
[1738177316216,32.53591553,229.47,229.4,20.0]
[1738177316424,32.53591553,229.56,229.46,32.53591553]
[1738177316643,32.53591553,229.52,229.42,32.53591553]
[1738177316828,0.12549,229.49,229.38,0.063]
[1738177317030,23.776884,229.48,229.38,0.063]
[1738177317527,3.9217,229.49,229.38,0.063]
[1738177317727,3.9214,229.51,229.39,0.25098]
[1738177318025,32.53591553,229.51,229.41,32.53591553]
[1738177318227,36.45701553,229.53,229.43,32.53591553]
[1738177318449,32.53591553,229.51,229.43,32.53591553]
[1738177318649,32.53591553,229.46,229.37,32.53591553]
[1738177318952,32.53591553,229.46,229.36,4.39731333]
[1738177319123,32.53591553,229.48,229.38,0.50196]
[1738177319331,32.53591553,229.53,229.43,32.53591553]
[1738177319539,32.53591553,229.51,229.41,32.53591553]
[1738177319934,23.776884,229.5,229.39,32.53591553]
[1738177320156,32.53591553,229.47,229.37,32.53591553]
[1738177320345,0.12549,229.54,229.44,0.12549]
[1738177320346,32.53591553,229.53,229.44,0.12549]
[1738177320528,36.48631553,229.57,229.47,32.53591553]
[1738177320724,32.53591553,229.51,229.41,32.53591553]
[1738177320943,32.53591553,229.49,229.39,32.53591553]
[1738177321147,32.53591553,229.43,229.36,0.03741333]
[1738177321447,24.027864,229.4,229.36,0.03741333]
[1738177321652,0.81753472,229.39,229.36,0.03741333]
[1738177321955,0.81763096,229.4,229.36,0.03741333]
[1738177322141,23.902374,229.39,229.36,0.03741333]
[1738177322352,56.68926953,229.37,229.36,0.03741333]
[1738177322744,56.56377953,229.37,229.36,0.03741333]
[1738177322956,60.48747953,229.37,229.36,1.333e-05]
[1738177323141,93.27437506,229.37,229.36,1.333e-05]
[1738177323549,60.73845953,229.37,229.36,1.333e-05]
[1738177323857,61.17970509,229.37,229.36,1.333e-05]
[1738177324065,0.12549,229.35,229.22,20.0]
[1738177324232,32.53591553,229.33,229.24,32.53591553]
[1738177324562,32.66140553,229.33,229.24,32.53591553]
[1738177324739,33.35364219,229.35,229.26,32.53591553]
[1738177324943,32.53591553,229.41,229.31,52.53591553]
[1738177325133,32.53591553,229.45,229.36,32.53591553]
[1738177325336,3.9522,229.46,229.37,0.12549]
[1738177325337,0.03,229.46,229.37,0.12549]
[1738177325660,0.03,229.46,229.42,20.0]
[1738177325954,0.03,229.57,229.49,0.25098]
[1738177326141,0.03,229.57,229.52,32.53591553]
[1738177326345,0.03,229.57,229.56,32.53591553]
[1738177326657,0.03,229.57,229.47,1.0]
[1738177326838,0.03,229.57,229.5,0.25098]
[1738177327036,0.03,229.57,229.51,4.3571]
[1738177327240,0.03,229.57,229.53,32.53591553]
[1738177327435,23.806884,229.57,229.49,32.53591553]
[1738177327627,32.53591553,229.53,229.44,32.53591553]
[1738177328034,0.03,229.57,229.52,32.53591553]
[1738177328243,0.03,229.57,229.56,0.12549]
[1738177328432,0.81645179,229.76,229.6,0.37647]
[1738177328632,0.81645179,229.76,229.59,20.0]
[1738177328633,21.84602927,229.74,229.73,52.53591553]
[1738177328857,0.03,229.74,229.73,20.0]
[1738177329164,0.03,229.74,229.67,4.354]
[1738177329535,0.03,229.74,229.65,316.3544]
[1738177329941,0.03,229.74,229.69,32.53591553]
[1738177330267,0.03,229.74,229.71,32.53591553]
[1738177330659,32.56591553,229.74,229.65,32.53591553]
[1738177330961,32.53591553,229.66,229.57,32.53591553]
[1738177331165,27.820174,229.72,229.47,1.6389]
[1738177331166,20.81643297,229.65,229.47,1.6389]
[1738177331375,20.81643297,229.65,229.44,4.3584]
[1738177331376,20.0,229.61,229.44,4.3584]
[1738177331545,24.59365625,229.6,229.44,4.3584]
[1738177331862,32.53591553,229.55,229.46,32.53591553]
[1738177332164,32.53591553,229.57,229.48,32.53591553]
[1738177332475,32.53591553,229.57,229.42,32.53591553]
[1738177332476,32.53591553,229.51,229.42,32.53591553]
[1738177332641,32.53591553,229.45,229.36,32.53591553]
[1738177332848,32.53591553,229.45,229.35,32.53591553]
[1738177333168,32.53591553,229.41,229.31,36.89681553]
[1738177333337,32.53591553,229.41,229.33,32.53591553]
[1738177333534,32.53591553,229.45,229.36,32.53591553]
[1738177333743,32.53591553,229.47,229.38,32.53591553]
[1738177333952,32.53591553,229.49,229.4,32.53591553]
[1738177334566,23.776884,229.48,229.4,32.53591553]
[1738177334766,32.53591553,229.43,229.34,32.53591553]
[1738177334935,32.53591553,229.47,229.38,32.53591553]
[1738177335142,32.53591553,229.47,229.3,0.12549]
[1738177335143,32.53591553,229.42,229.34,32.53591553]
[1738177335474,0.81719683,229.46,229.3,32.53591553]
[1738177335475,32.53591553,229.38,229.3,32.53591553]
[1738177335766,32.53591553,229.33,229.31,0.063]
[1738177335956,24.72006396,229.32,229.31,0.063]
[1738177336471,23.776884,229.32,229.31,0.063]
[1738177336669,32.53591553,229.33,229.31,0.063]
[1738177336843,32.53591553,229.41,229.32,32.53591553]
[1738177337166,3.9234,229.39,229.31,0.063]
[1738177337372,32.53591553,229.35,229.31,0.063]
[1738177338243,0.03,229.4,229.37,20.0]
[1738177338562,0.03,229.4,229.31,4.4237]
[1738177338936,0.03,229.4,229.34,0.12549]
[1738177339274,0.03,229.4,229.33,20.0]
[1738177339275,0.03,229.4,229.31,0.063]
[1738177339439,0.03,229.4,229.31,4.4238]
[1738177339643,23.902374,229.38,229.31,0.063]
[1738177339850,32.53591553,229.37,229.31,0.063]
[1738177340357,0.03,229.4,229.31,0.063]
[1738177340358,32.53591553,229.35,229.31,0.063]
[1738177340563,32.53591553,229.33,229.31,0.063]
[1738177340905,0.12549,229.27,229.14,32.53591553]
[1738177341171,0.12549,229.27,229.08,32.53591553]
[1738177341172,32.53591553,229.16,229.08,32.53591553]
[1738177341370,32.53591553,229.16,229.09,4.365]
[1738177341547,32.53591553,229.16,229.08,32.53591553]
[1738177341748,32.53591553,229.18,229.08,36.90101553]
[1738177342048,32.53591553,229.16,229.08,32.53591553]
[1738177342560,33.03787553,229.16,229.0,32.53591553]
[1738177342759,0.12549,229.11,228.98,36.90301553]
[1738177342972,32.53591553,229.07,228.98,32.53591553]
[1738177343159,32.53591553,229.09,229.0,32.53591553]
[1738177343775,32.53591553,229.11,229.02,32.53591553]
[1738177343980,32.53591553,229.07,228.98,32.53591553]
[1738177344161,32.53591553,229.02,228.92,32.53591553]
[1738177344368,32.53591553,228.98,228.9,36.96751553]
[1738177344572,32.53591553,228.98,228.9,32.59891553]
[1738177344778,32.53591553,229.0,228.9,36.96751553]
[1738177344964,32.53591553,229.0,228.92,32.53591553]
[1738177345164,32.53591553,229.02,228.94,32.53591553]
[1738177345389,32.53591553,229.04,228.94,32.53591553]
[1738177345588,32.53591553,229.02,228.94,32.53591553]
[1738177345793,1.0,229.1,228.92,4.3682]
[1738177345794,32.53591553,229.0,228.92,36.90411553]
[1738177346099,32.53591553,229.06,228.96,32.53591553]
[1738177346298,32.53591553,229.04,228.94,32.53591553]
[1738177346595,32.53591553,229.0,228.92,32.53591553]
[1738177346762,32.53591553,228.98,228.9,0.063]
[1738177346971,32.53591553,229.11,228.91,1.0]
[1738177347163,32.53591553,229.09,229.01,32.53591553]
[1738177347391,32.53591553,229.09,228.9,333.9065]
[1738177347392,32.53591553,229.03,228.93,32.53591553]
[1738177347571,32.53591553,229.01,228.91,36.90441553]
[1738177347901,0.81853967,229.08,228.91,36.90441553]
[1738177347902,32.53591553,228.99,228.91,36.90441553]
[1738177348192,0.81892471,228.98,228.9,0.063]
[1738177348367,32.53591553,229.03,228.94,32.53591553]
[1738177348571,33.354889,229.07,228.98,32.53591553]
[1738177348877,33.354889,229.07,228.92,23.902374]
[1738177348878,32.53591553,229.05,228.96,32.53591553]
[1738177349202,32.53591553,229.03,228.94,32.53591553]
[1738177349370,32.53591553,229.07,228.98,32.53591553]
[1738177349570,32.53591553,229.11,229.04,32.53591553]
[1738177349871,33.35438999,229.1,229.0,32.53591553]
[1738177350288,32.53591553,229.08,229.0,32.53591553]
[1738177350488,32.53591553,229.08,228.98,32.53591553]
[1738177350691,32.53591553,229.06,228.96,32.53591553]
[1738177350867,32.53591553,229.02,228.95,4.3677]
[1738177351074,0.12549,229.1,228.98,32.53591553]
[1738177351075,32.53591553,229.06,228.98,32.53591553]
[1738177351277,32.53591553,229.08,228.98,32.53591553]
[1738177351481,32.53591553,229.08,229.0,32.53591553]
[1738177351800,32.53591553,229.14,229.04,32.53591553]
[1738177351971,32.53591553,229.14,229.06,32.53591553]
[1738177352175,32.53591553,229.12,229.02,32.53591553]
[1738177352504,32.53591553,229.07,228.99,4.367]
[1738177352674,32.53591553,229.05,228.99,4.367]
[1738177352875,32.53591553,229.07,228.99,4.367]
[1738177353103,32.53591553,229.05,228.99,4.367]
[1738177353307,32.53591553,229.12,229.02,32.53591553]
[1738177353473,32.53591553,229.12,229.05,4.3658]
[1738177353673,32.53591553,229.14,229.05,4.3658]
[1738177353990,32.53591553,229.21,229.12,32.53591553]
[1738177354187,32.53591553,229.18,229.09,32.53591553]
[1738177354377,32.53591553,229.16,229.07,32.53591553]
[1738177354696,32.53591553,229.16,228.94,22.8397]
[1738177354697,32.53591553,229.09,228.92,10.9208]
[1738177354908,32.53591553,229.08,228.99,32.53591553]
[1738177355100,0.37647,229.17,229.01,32.53591553]
[1738177355101,32.53591553,229.1,229.01,32.53591553]
[1738177355309,1.0,229.2,229.01,32.53591553]
[1738177355310,32.53591553,229.16,229.09,32.53591553]
[1738177355597,32.53591553,229.13,229.04,32.53591553]
[1738177355798,32.53591553,229.11,229.02,36.90231553]
[1738177355999,32.53591553,229.09,229.0,32.53591553]
[1738177356178,32.53591553,229.01,228.9,0.063]
[1738177356378,32.53591553,228.95,228.9,0.063]
[1738177356580,32.53591553,228.97,228.9,32.59891553]
[1738177356979,32.53591553,228.97,228.9,0.063]
[1738177357190,32.53591553,228.99,228.9,32.59891553]
[1738177357370,32.53591553,228.97,228.9,32.59891553]
[1738177357576,32.53591553,228.95,228.9,0.063]
[1738177357798,32.53591553,228.93,228.9,0.063]
[1738177358015,32.53591553,228.91,228.9,0.063]
[1738177358585,65.07183106,228.91,228.9,0.063]
[1738177358802,89.35067506,228.91,228.9,0.0001]
[1738177359008,23.902374,228.87,228.69,32.53591553]
[1738177359178,65.07183106,228.8,228.67,32.59891553]
[1738177359380,89.09969506,228.8,228.67,0.063]
[1738177359735,23.776884,228.75,228.67,0.063]
[1738177360007,32.53591553,228.68,228.67,0.063]
[1738177360218,33.35599034,228.68,228.67,0.063]
[1738177360400,57.25836434,228.68,228.67,0.063]
[1738177360600,33.35599034,228.68,228.67,0.063]
[1738177360788,0.82005354,228.68,228.67,0.063]
[1738177360987,0.82005354,228.68,228.52,32.53591553]
[1738177361186,32.53591553,228.55,228.46,32.53591553]
[1738177361390,0.82005354,228.68,228.44,0.063]
[1738177361391,32.53591553,228.48,228.44,0.063]
[1738177362106,32.53591553,228.46,228.44,0.063]
[1738177362281,0.82074429,228.45,228.44,0.063]
[1738177362802,20.0,228.43,228.25,32.53591553]
[1738177363012,32.53591553,228.4,228.31,32.53591553]
[1738177363189,0.82116515,228.39,228.36,1.0]
[1738177363515,1.12549,228.5,228.39,1.0]
[1738177363516,0.82111376,228.45,228.39,1.0]
[1738177363684,0.82082023,228.49,228.44,20.0]
[1738177363885,32.53591553,228.49,228.4,32.53591553]
[1738177364305,32.53591553,228.51,228.42,32.53591553]
[1738177364491,32.53591553,228.51,228.37,4.3786]
[1738177364492,32.53591553,228.45,228.29,1.0]
[1738177364693,32.53591553,228.39,228.3,36.91611553]
[1738177364891,32.53591553,228.36,228.3,4.3802]
[1738177365118,20.0,228.31,228.01,1.0]
[1738177365423,20.0,228.31,228.1,1.0]
[1738177365424,0.82168771,228.3,228.1,1.0]
[1738177365584,0.82148151,228.3,228.11,15.3434]
[1738177365790,21.82130525,228.36,228.11,15.3434]
[1738177366010,20.0,228.34,228.15,32.53591553]
[1738177366184,32.53591553,228.31,228.21,32.53591553]
[1738177366602,32.53591553,228.35,228.25,32.53591553]
[1738177367097,32.53591553,228.29,228.21,32.53591553]
[1738177367394,32.93843615,228.29,228.2,32.93843615]
[1738177367601,4.9403,228.41,228.2,32.93843615]
[1738177367602,32.93843615,228.33,228.25,4.50659]
[1738177367807,32.93843615,228.31,228.24,4.3812]
[1738177368202,32.93843615,228.31,228.25,20.0]
[1738177368405,32.93843615,228.39,228.31,24.153354]
[1738177368610,32.93843615,228.41,228.33,0.12549]
[1738177368808,32.93843615,228.35,228.26,32.93843615]
[1738177369199,32.93843615,228.31,228.24,4.3812]
[1738177369392,32.93843615,228.29,228.24,4.3812]
[1738177369786,32.93843615,228.33,228.24,32.93843615]
[1738177370003,32.93843615,228.41,228.32,0.12549]
[1738177370192,32.93843615,228.41,228.31,32.93843615]
[1738177370402,32.93843615,228.43,228.33,32.93843615]
[1738177370609,32.93843615,228.37,228.29,32.93843615]
[1738177370925,32.93843615,228.37,228.28,32.93843615]
[1738177371092,32.91071029,228.45,228.35,53.28718029]
[1738177371295,32.91071029,228.45,228.37,32.91071029]
[1738177371716,32.91071029,228.39,228.3,32.91071029]
[1738177372017,32.91071029,228.41,228.32,32.91071029]
[1738177372199,32.91071029,228.42,228.33,32.91071029]
[1738177372403,32.91071029,228.38,228.31,37.29071029]
[1738177372603,32.91071029,228.38,228.31,4.38]
[1738177373119,32.91071029,228.42,228.33,32.91071029]
[1738177373622,32.91071029,228.38,228.31,4.38]
[1738177373925,32.91071029,228.36,228.27,37.29141029]
[1738177374107,32.91071029,228.36,228.29,32.91071029]
[1738177374296,32.91071029,228.38,228.3,0.12549]
[1738177374496,32.91071029,228.38,228.31,32.91071029]
[1738177374720,0.82109258,228.37,228.29,32.91071029]
[1738177374927,32.91071029,228.36,228.27,37.29141029]
[1738177375313,0.82113478,228.35,228.24,37.29191029]
[1738177375512,0.82113478,228.35,228.21,0.063]
[1738177375513,32.91071029,228.27,228.21,0.063]
[1738177375711,32.91071029,228.24,228.21,0.063]
[1738177376042,32.91071029,228.22,228.09,32.91071029]
[1738177376207,1.0,228.19,227.98,6.0067]
[1738177376401,32.91071029,228.15,228.07,32.91071029]
[1738177376602,32.91071029,228.19,228.09,32.91071029]
[1738177376824,32.91071029,228.16,228.07,32.91071029]
[1738177377203,32.91071029,228.18,228.09,32.91071029]
[1738177377526,1.0,228.31,228.09,32.91071029]
[1738177377527,32.91071029,228.22,228.13,32.91071029]
[1738177377934,32.91071029,228.26,228.17,32.91071029]
[1738177378135,32.91071029,228.24,228.15,32.91071029]
[1738177378519,32.91071029,228.2,228.11,32.91071029]
[1738177378830,32.91071029,228.2,228.08,0.25098]
[1738177379037,32.91071029,228.25,228.07,0.12549]
[1738177379038,32.91071029,228.16,228.07,32.91071029]
[1738177379742,32.91071029,228.14,228.05,32.91071029]
[1738177379905,32.91071029,228.12,228.03,37.29601029]
[1738177380110,32.91071029,228.1,228.0,32.91071029]
[1738177380522,32.91071029,228.08,228.0,32.91071029]
[1738177380728,32.91071029,228.06,227.98,32.91071029]
[1738177380931,32.91071029,228.04,227.95,32.91071029]
[1738177381108,32.91071029,228.02,227.93,32.91071029]
[1738177381510,32.91071029,228.02,227.9,4.4508]
[1738177381511,1.0,228.1,227.9,0.063]
[1738177381727,32.91071029,227.98,227.9,32.97371029]
[1738177381934,0.8224234,228.09,227.9,32.97371029]
[1738177382143,32.91071029,228.02,227.92,32.91071029]
[1738177382446,1.0,228.08,227.9,0.063]
[1738177382623,1.0,228.06,227.9,0.063]
[1738177382939,1.0,228.01,227.9,0.063]
[1738177383143,0.12549,227.99,227.9,0.063]
[1738177383447,32.91071029,227.91,227.9,0.063]
[1738177383811,32.91071029,227.92,227.9,0.063]
[1738177384013,0.82271124,227.91,227.9,0.063]
[1738177384936,1.82271124,227.91,227.9,0.063]
[1738177385142,1.0,227.88,227.69,32.91071029]
[1738177385327,32.91071029,227.79,227.69,32.91071029]
[1738177385534,0.82335646,227.78,227.69,32.91071029]
[1738177385842,32.91071029,227.73,227.65,32.91071029]
[1738177386221,32.91071029,227.78,227.69,32.91071029]
[1738177386416,20.82332237,227.77,227.59,355.74431029]
[1738177386722,32.91071029,227.72,227.63,32.91071029]
[1738177386914,0.82349556,227.71,227.63,32.91071029]
[1738177387318,0.82359525,227.8,227.69,32.91071029]
[1738177387523,0.82359525,227.8,227.59,37.30441029]
[1738177387524,32.91071029,227.82,227.74,32.91071029]
[1738177387914,32.91071029,227.78,227.7,32.91071029]
[1738177388114,32.91071029,227.8,227.7,32.91071029]
[1738177388315,32.91071029,227.82,227.72,32.91071029]
[1738177388533,0.82320149,227.9,227.78,32.91071029]
[1738177388534,32.91071029,227.86,227.78,32.91071029]
[1738177388735,32.91071029,227.88,227.8,32.91071029]
[1738177388949,32.91071029,227.88,227.7,33.91071029]
[1738177388950,0.80859204,228.0,227.82,20.0]
[1738177389162,32.91071029,227.96,227.85,32.91071029]
[1738177389346,32.91071029,227.94,227.85,32.91071029]
[1738177389644,32.91071029,227.94,227.85,344.91071029]
[1738177389857,34.73340993,228.03,227.76,32.91071029]
[1738177389858,32.91071029,227.86,227.76,32.91071029]
[1738177390064,32.91071029,227.8,227.72,32.91071029]
[1738177390352,0.82312778,227.79,227.72,32.91071029]
[1738177390653,32.91071029,227.74,227.64,32.91071029]
[1738177390852,32.91071029,227.76,227.66,32.91071029]
[1738177391024,32.91071029,227.75,227.66,32.91071029]
[1738177391230,32.91071029,227.75,227.48,21.71009349]
[1738177391231,0.82320218,227.74,227.62,0.063]
[1738177391538,1.0,227.77,227.62,0.063]
[1738177391723,1.0,227.72,227.62,0.063]
[1738177392055,0.82382583,227.71,227.62,0.063]
[1738177392261,32.91071029,227.69,227.62,0.063]
[1738177392433,32.91071029,227.67,227.62,0.063]
[1738177392751,32.91071029,227.63,227.62,0.063]
[1738177392939,32.91071029,227.65,227.62,0.063]
[1738177393136,32.91071029,227.71,227.62,32.97371029]
[1738177393468,0.8235655,227.7,227.62,32.97371029]
[1738177393633,0.82352837,227.83,227.68,32.91071029]
[1738177393831,0.82320552,227.84,227.75,32.91071029]
[1738177394056,1.0,227.94,227.75,4.3905]
[1738177394057,32.91071029,227.89,227.75,4.3905]
[1738177394228,32.91071029,227.94,227.85,32.91071029]
[1738177394558,2.0,228.04,227.75,4.3905]
[1738177394559,32.91071029,227.96,227.86,32.91071029]
[1738177394759,32.91071029,227.9,227.82,32.91071029]
[1738177394933,3.5088,228.0,227.8,32.91071029]
[1738177394934,32.91071029,227.88,227.8,32.91071029]
[1738177395138,32.91071029,227.9,227.8,32.91071029]
[1738177395454,32.91071029,227.91,227.82,32.91071029]
[1738177395651,32.91071029,227.95,227.86,32.91071029]
[1738177395856,0.82264847,227.94,227.86,32.91071029]
[1738177396034,3.5098,227.93,227.75,4.3905]
[1738177396230,32.91071029,227.83,227.74,32.91071029]
[1738177396559,0.82298991,227.82,227.62,0.063]
[1738177396940,0.82298991,227.82,227.62,4.4561]
[1738177397123,0.25098,227.81,227.62,0.063]
[1738177397327,0.82363294,227.8,227.62,0.063]
[1738177397528,32.91071029,227.72,227.63,32.91071029]
[1738177397826,32.91071029,227.7,227.66,0.063]
[1738177398127,32.91071029,227.72,227.66,0.063]
[1738177398333,32.91071029,227.7,227.66,0.063]
[1738177398535,32.91071029,227.68,227.66,0.063]
[1738177398728,0.82360909,227.67,227.66,0.063]
[1738177398932,32.91071029,227.68,227.66,0.063]
[1738177399131,0.82373757,227.67,227.66,0.063]
[1738177399655,1.0,227.66,227.62,0.063]
[1738177399862,32.91071029,227.63,227.62,0.063]
[1738177400038,2.07495046,227.77,227.62,0.063]
[1738177400039,0.82380766,227.76,227.63,4.393]
[1738177400240,1.0,227.87,227.63,4.393]
[1738177400241,3.5119,227.8,227.63,4.393]
[1738177400442,0.8232813,227.79,227.64,24.153354]
[1738177400638,0.8232813,227.79,227.63,4.393]
[1738177400842,0.8232813,227.79,227.62,0.063]
[1738177401042,32.91071029,227.71,227.62,32.97371029]
[1738177401255,0.12549,227.78,227.62,32.97371029]
[1738177401256,32.91071029,227.66,227.62,0.063]
[1738177401558,32.91071029,227.64,227.62,0.063]
[1738177401749,32.91071029,227.66,227.62,0.063]
[1738177401931,32.91071029,227.64,227.62,0.063]
[1738177402132,33.73453638,227.64,227.62,0.063]
[1738177402352,0.82388384,227.63,227.62,0.063]
[1738177402929,0.82391417,227.63,227.62,0.063]
[1738177403132,3.89901417,227.63,227.62,0.063]
[1738177403558,32.91071029,227.66,227.62,0.063]
[1738177403762,0.82394937,227.68,227.62,0.063]
[1738177403763,32.91071029,227.68,227.62,0.063]
[1738177404062,32.91071029,227.66,227.62,0.063]
[1738177404235,32.91071029,227.7,227.62,0.063]
[1738177404432,8.50727755,227.76,227.66,32.91071029]
[1738177404433,3.0735,227.75,227.66,32.91071029]
[1738177404660,0.82367755,227.76,227.62,4.4561]
[1738177404661,0.82342981,227.76,227.7,32.91071029]
[1738177404872,35.98341029,227.81,227.72,32.91071029]
[1738177405086,3.89528582,227.86,227.78,32.91071029]
[1738177405291,0.82318582,227.86,227.78,32.91071029]
[1738177405450,32.91071029,227.86,227.78,32.91071029]
[1738177405650,0.82300775,227.91,227.8,32.91071029]
[1738177405651,0.82298451,227.85,227.8,32.91071029]
[1738177405988,32.91071029,227.92,227.84,32.91071029]
[1738177406183,32.91071029,227.94,227.83,32.91071029]
[1738177406359,0.82275111,227.93,227.87,32.91071029]
[1738177406552,32.91071029,227.92,227.83,33.16169029]
[1738177406884,32.91071029,227.92,227.82,4.3893]
[1738177406885,32.91071029,227.96,227.9,20.0]
[1738177407078,0.82268925,228.02,227.94,32.91071029]
[1738177407287,3.0992,228.07,227.94,32.91071029]
[1738177407484,3.0992,228.07,227.85,20.0]
[1738177407485,32.91071029,228.0,227.91,32.91071029]
[1738177407655,32.91071029,227.96,227.87,32.91071029]
[1738177407964,32.91071029,227.88,227.78,32.91071029]
[1738177408166,32.91071029,227.88,227.72,6.3006]
[1738177408167,0.82288625,227.87,227.74,32.91071029]
[1738177408382,1.0,227.89,227.72,6.3006]
[1738177408583,32.91071029,227.76,227.66,32.91071029]
[1738177408788,32.91071029,227.72,227.64,32.91071029]
[1738177408987,32.91071029,227.74,227.66,32.91071029]
[1738177409289,32.91071029,227.81,227.62,0.063]
[1738177409290,32.91071029,227.7,227.62,0.063]
[1738177409501,32.91071029,227.64,227.62,0.063]
[1738177409798,0.82377173,227.78,227.62,32.97371029]
[1738177410084,35.98431029,227.74,227.66,32.91071029]
[1738177410287,0.82351265,227.73,227.66,1.48091029]
[1738177410457,32.91071029,227.67,227.62,0.0001]
[1738177410797,0.82411376,227.66,227.62,0.0001]
[1738177411086,0.82382212,227.72,227.62,0.0001]
[1738177411302,2.0,227.7,227.62,0.0001]
[1738177411453,20.0,227.64,227.62,0.0001]
[1738177411653,0.82414505,227.63,227.62,0.0001]
[1738177411893,33.73485534,227.63,227.62,0.0001]
[1738177412192,36.80995534,227.63,227.62,0.0001]
[1738177412590,69.72066563,227.63,227.62,0.0001]
[1738177412786,20.0,227.6,227.42,39.55791029]
[1738177413001,32.91071029,227.47,227.42,6.6472]
[1738177413293,32.91071029,227.49,227.42,6.6472]
[1738177413967,33.73493069,227.59,227.39,0.063]
[1738177413968,32.91071029,227.44,227.39,0.063]
[1738177414170,32.91071029,227.44,227.31,32.91071029]
[1738177414171,32.91071029,227.4,227.28,20.0]
[1738177414405,0.82497012,227.39,227.19,32.91071029]
[1738177414577,0.8247794,227.42,227.16,1.0]
[1738177414892,32.91071029,227.33,227.24,32.91071029]
[1738177415074,32.91071029,227.31,227.22,32.91071029]
[1738177415273,32.91071029,227.25,227.14,32.91071029]
[1738177415570,32.91071029,227.25,227.16,32.91071029]
[1738177415773,0.82519071,227.36,227.14,312.0]
[1738177415774,32.91071029,227.21,227.14,312.0]
[1738177416038,32.91071029,227.26,227.0,37.31591029]
[1738177416182,32.91071029,227.07,226.99,6.48867352]
[1738177416511,32.91071029,227.05,226.99,6.48867352]
[1738177416873,32.91071029,227.05,226.98,1.0]
[1738177417073,32.91071029,227.15,226.98,1.0]
[1738177417074,32.91071029,227.07,226.98,5.4054]
[1738177417281,32.91071029,227.05,226.98,1.0]
[1738177417485,32.91071029,227.07,226.99,32.91071029]
[1738177417778,32.91071029,227.11,227.01,32.91071029]
[1738177418086,32.91071029,227.15,227.05,33.03620029]
[1738177418283,32.91071029,227.17,227.09,32.91071029]
[1738177418708,32.91071029,227.19,227.12,20.0]
[1738177418905,32.91071029,227.21,227.11,32.91071029]
[1738177419112,32.91071029,227.19,227.11,32.91071029]
[1738177419411,32.91071029,227.19,227.12,24.278844]
[1738177419829,32.91071029,227.21,227.13,32.91071029]
[1738177420137,29.87304611,227.39,227.13,32.91071029]
[1738177420138,32.91071029,227.25,227.17,32.91071029]
[1738177420301,23.22884611,227.39,227.21,0.12549]
[1738177420302,32.91071029,227.27,227.21,0.12549]
[1738177420635,3.0784,227.39,227.11,4.403]
[1738177420636,32.91071029,227.22,227.11,4.403]
[1738177420838,32.91071029,227.16,227.09,32.91071029]
[1738177421129,32.91071029,227.14,227.05,32.91071029]
[1738177421315,32.91071029,227.12,227.03,39.09071029]
[1738177421625,33.73562863,227.26,227.03,4.4046]
[1738177421806,32.91071029,227.11,227.03,4.4046]
[1738177422000,32.91071029,227.07,227.04,0.12549]
[1738177422219,32.91071029,227.16,227.13,0.063]
[1738177422823,32.91071029,227.14,227.13,0.063]
[1738177423143,32.91071029,227.14,227.04,4.4044]
[1738177423436,32.91071029,227.13,227.05,24.153354]
[1738177423606,32.91071029,227.13,227.05,57.06406429]
[1738177424103,32.91071029,227.13,227.06,0.12549]
[1738177424303,32.91071029,227.17,227.1,0.25098]
[1738177424523,32.91071029,227.17,227.1,24.027864]
[1738177424909,32.91071029,227.19,227.12,0.25098]
[1738177425209,32.91071029,227.17,227.12,0.25098]
[1738177425605,32.91071029,227.17,227.09,32.91071029]
[1738177425938,32.91071029,227.19,227.11,32.91071029]
[1738177426109,32.91071029,227.19,227.09,312.0]
[1738177426110,32.91071029,227.17,227.09,32.91071029]
[1738177426306,32.91071029,227.17,227.1,24.278844]
[1738177426507,32.91071029,227.19,227.11,32.91071029]
[1738177426723,32.91071029,227.16,227.1,4.4033]
[1738177427133,32.91071029,227.12,227.05,32.91071029]
[1738177427611,32.91071029,227.14,227.06,0.50196]
[1738177428015,32.91071029,227.14,227.07,32.91071029]
[1738177428334,32.91071029,227.16,227.07,32.91071029]
[1738177428511,32.91071029,227.16,227.08,4.4037]
[1738177428712,32.91071029,227.09,227.01,32.91071029]
[1738177428926,32.91071029,227.13,227.05,32.91071029]
[1738177429102,32.91071029,227.11,227.05,312.0]
[1738177429303,32.91071029,227.09,227.01,32.91071029]